Cogmind - Beta 14 @@@ ROGUE MODE // 2024.09.01 @ 01:55:11 Player: THN-L0C Result: Destroyed by G-34 Mercenary with Small Laser Performance ------------- Evolutions (0) 0 Regions Visited (1) 200 Robots Destroyed (10) 50 Value Destroyed (227) 227 Prototype IDs (0) 0 Alien Tech Used (0) 0 Bonus (0) 0 TOTAL SCORE: 477 Bonus ------- None Cogmind --------- Core Integrity 0/250 Matter 300/300 Energy 100/100 System Corruption 0% Temperature Cool (6) Movement Core (350) Ox6 Location -10/Materials Parts ------- > --- POWER (1) -------- (None) > --- PROPULSION (2) --- (None) > --- UTILITY (2) ------ Large Storage Unit > --- WEAPON (2) ------- (None) > --- INVENTORY (15) --- Small Storage Unit Improved Terrain Scanner Peak State ------------ > --- POWER ------------ Ion Engine > --- PROPULSION ------- Wheel Wheel > --- UTILITY ---------- Small Storage Unit Seismic Detector > --- WEAPON ----------- Assault Rifle Light Assault Rifle > --- INVENTORY -------- Improved Terrain Scanner [Rating: 7] Favorites ----------- Power Ion Engine Engine Ion Engine Propulsion Wheel Wheel Wheel Utility Large Storage Unit Device Seismic Detector Storage Large Storage Unit Weapon Light Assault Rifle Energy Gun Small Laser Ballistic Gun Light Assault Rifle Build | -11 -10 ------- Run | Yrd Mat Slots Evolved . | . . Power . | . . Propulsion . | . . Utility . | . . Weapon . | . . Parts Attached 10 | 7 3 Power 1 | 1 . Engine 1 | 1 . Core . | . . Reactor . | . . Propulsion 2 | 2 . Treads . | . . Leg . | . . Wheel 2 | 2 . Hover . | . . Flight . | . . Utility 3 | 2 1 Device 1 | 1 . Storage 2 | 1 1 Processor . | . . Hackware . | . . Protection . | . . Artifact . | . . Weapon 4 | 2 2 Energy Gun 2 | . 2 Energy Cannon . | . . Ballistic Gun 2 | 2 . Ballistic Cannon . | . . Launcher . | . . Special Weapon . | . . Impact Weapon . | . . Slashing Weapon . | . . Piercing Weapon . | . . Special Melee Weapon . | . . Unidentified Prototypes . | . . Parts Lost 8 | . 8 Power 1 | . 1 Propulsion 2 | . 2 Utility 1 | . 1 Weapon 4 | . 4 Highest Loss Streak 5 | . 5 To Critical Strikes . | . . Average Slot Usage (%) 83 | . 83 Engine 13 | . 13 Wheel 18 | . 18 Device 13 | . 13 Storage 14 | . 14 Energy Gun 4 | . 4 Ballistic Gun 17 | . 17 Peak Build Rating 7 | 7 7 Average Rating 5 | 4 5 On Entrance 3 | . 7 Naked Turns . | . . Heaviest Build 29 | 14 29 Greatest Support 20 | 20 20 Greatest Overweight (x) 8 | . 8 Average Overweight (x) 1 | . 1 Largest Inventory Capacity 15 | 8 15 Average Capacity 13 | 6 14 Most Carried 2 | 1 2 Average Carried 1 | . 1 Final Capacity 15 | 8 15 Final Carried 2 | 1 2 Class Distribution -------------------- 100% | Mutant Dominant Class ---------------- Mutant | -10/Materials Resources | -11 -10 ----------- Run | Yrd Mat Matter Collected 395 | 229 166 Remotely . | . . Salvage Created 310 | 52 258 Parts 21 | 6 15 Haulers Intercepted . | . . Recyclers Shooed . | . . Parts Field Recycled . | . . Retrieved Matter . | . . Parts Self-Destructed . | . . Prevented . | . . Kills | -11 -10 ------- Run | Yrd Mat Combat Hostiles Destroyed 8 | . 8 Guns 8 | . 8 Classes Destroyed 3 | 1 2 Tunneler 2 | 2 . Swarmer 3 | . 3 Grunt 5 | . 5 Best Kill Streak 3 | 2 3 Combat Bots Only 3 | . 3 Max Kills in Single Turn 1 | 1 1 Gunslinging . | . . Exploded . | . . Melee . | . . Uniques/NPCs Destroyed . | . . Combat | -11 -10 -------- Run | Yrd Mat Hostile Shots Fired 104 | . 104 Missed 30 | . 30 Damage Taken 817 | . 817 Core 257 | . 257 Absorbed by Shields . | . . Core Remaining (%) 100 | 100 . Volleys Fired 48 | 2 46 Largest 2 | 2 2 Hottest 80 | 40 80 Shots Fired 79 | 4 75 Gun 79 | 4 75 Cannon . | . . Launcher . | . . Special . | . . Kinetic 62 | 4 58 Thermal 17 | . 17 Explosive . | . . Electromagnetic . | . . Robot Hit Streak 13 | 2 13 Robot Miss Streak 6 | . 6 Penetration Max . | . . Secondary Targets . | . . Shots Hit Robots 51 | 2 49 Core Hits 18 | 2 16 Critical Kills . | . . Critical Parts Destroyed . | . . Critical Strikes . | . . Melee Attacks . | . . Impact . | . . Slashing . | . . Piercing . | . . Sneak Attacks . | . . Combat Hostiles . | . . Follow-up Attacks . | . . Damage Inflicted 521 | 35 486 Guns 519 | 35 484 Cannons . | . . Explosions . | . . Melee . | . . Ramming 2 | . 2 Kinetic 397 | 35 362 Thermal 122 | . 122 Explosive . | . . Electromagnetic . | . . Impact . | . . Slashing . | . . Piercing . | . . Highest Corruption . | . . Average Corruption . | . . Corruption Purged . | . . Corruption Blocked . | . . Overload Shots . | . . Overflow Damage . | . . Projectiles . | . . Explosions . | . . Melee . | . . Knockbacks . | . . Impact . | . . Kinetic . | . . Secondary . | . . Self-Inflicted Damage 1 | . 1 Shots . | . . Rammed 2 | . 2 Targets Rammed 2 | . 2 Kicked . | . . Crushed . | . . Highest Temperature 210 | . 210 Average Temperature 63 | . 63 Received Heat Transfer 414 | . 414 Siege Activations . | . . Robots Corrupted . | . . Combat Hostiles . | . . Parts Fried . | . . Impact Corruptions . | . . Robots Melted . | . . Combat Hostiles . | . . Parts Melted . | . . Heat Transferred 275 | . 275 Parts Sabotaged . | . . Parts Stolen . | . . Parts Stripped . | . . Power Chain Reactions . | . . Alert | -11 -10 ------- Run | Yrd Mat Peak Influence 227 | 10 227 Initial 6 | . 6 Average 86 | 1 97 Maximum Alert Level 1 | . 1 Low Security (%) 95 | 100 95 Level 1 4 | . 4 Level 2 . | . . Level 3 . | . . Level 4 . | . . Level 5 . | . . High Security . | . . Max Security . | . . Squads Dispatched 2 | . 2 Investigation 1 | . 1 Extermination . | . . Reinforcement 1 | . 1 Assault . | . . Garrison . | . . Intercept . | . . Searches Triggered . | . . Construction Impeded . | . . Haulers Reinforced . | . . Active Scanning Responses . | . . Cargo Convoy Interrupts . | . . Stealth | -11 -10 --------- Run | Yrd Mat Distress Signals 1 | . 1 Communications Jammed . | . . Distress Signals . | . . Times Spotted 18 | . 18 Peak Tracking Total 6 | . 6 Tactical Retreats 1 | . 1 Traps | -11 -10 ------- Run | Yrd Mat Traps Triggered 1 | . 1 Indirectly . | . . Trap Hack Attempts . | . . Triggered . | . . Disarmed . | . . Reprogrammed . | . . Reused . | . . Traps Extracted . | . . Installed . | . . Triggered . | . . Machines | -11 -10 ---------- Run | Yrd Mat Machines Disabled . | . . Max in Single Turn . | . . Machines Repaired . | . . Machines Dismantled . | . . Machines Sabotaged . | . . Overloaded Fab Kills . | . . Hacking | -11 -10 --------- Run | Yrd Mat Machines Accessed 4 | . 4 Terminals 4 | . 4 Fabricators . | . . Repair Stations . | . . Recycling Units . | . . Scanalyzers . | . . Garrison Access . | . . Total Hacks 7 | . 7 Successful 6 | . 6 Failed 1 | . 1 Catastrophic . | . . Database Lockouts . | . . Manual 6 | . 6 Terminals 7 | . 7 Fabricators . | . . Repair Stations . | . . Recycling Units . | . . Scanalyzers . | . . Garrison Access . | . . Terminal Hacks 1 | . 1 Zone Layout 1 | . 1 Fabricator Hacks . | . . Repair Station Hacks . | . . Recycling Unit Hacks . | . . Scanalyzer . | . . Garrison Access Hacks . | . . Unauthorized Hacks 5 | . 5 Terminals 5 | . 5 Botnet 1 | . 1 Skim 4 | . 4 Fabricators . | . . Repair Stations . | . . Recycling Units . | . . Scanalyzers . | . . Garrison Access . | . . Data Cores Recovered . | . . Used . | . . Hacking Detections 2 | . 2 Full Trace Events . | . . Feedback Events . | . . Feedback Blocked . | . . Robot Schematics Acquired . | . . Robots Built . | . . Authchips . | . . Time . | . . Total Robot Build Rating . | . . Part Schematics Acquired . | . . Parts Built . | . . Authchips . | . . Time . | . . Total Part Build Rating . | . . Parts Repaired . | . . Time . | . . Parts Recycled . | . . Recycled Matter . | . . Retrieved Matter . | . . Retrieved Components . | . . Parts Scanalyzed . | . . Part Schematics Acquired . | . . Parts Damaged . | . . Bothacking | -11 -10 ------------ Run | Yrd Mat Used RIF Installer . | . . Robots Hacked . | . . Non-combat . | . . Combat . | . . Robot Hacks Applied . | . . Relay Couplers Released . | . . Fabnet Peak Effective % . | . . Robots Rewired . | . . Allies Hacked . | . . Hacks Repelled . | . . Allies | -11 -10 -------- Run | Yrd Mat Total Allies . | . . Largest Group . | . . Highest-Rated Group . | . . Highest-Rated Ally . | . . Total Orders . | . . Ally Attacks . | . . Total Damage . | . . Kills . | . . Allies Corrupted . | . . Allies Melted . | . . Intel | -11 -10 ------- Run | Yrd Mat Robot Analysis Total . | . . Derelict Logs Recovered . | . . Drone Launches . | . . Drone Recoveries . | . . Exploration | -11 -10 ------------- Run | Yrd Mat Turns Passed 526 | 61 465 Spaces Moved 305 | 62 243 Core 45 | 19 26 Treads . | . . Legs . | . . Wheels 260 | 43 217 Hover . | . . Flight . | . . Fastest Speed 50 | 50 80 Average Speed 118 | 70 130 Slowest Speed 450 | 80 450 Overloaded Moves . | . . Propulsion Burnouts . | . . Robots Hopped . | . . Cave-ins Triggered . | . . Exploration Rate (%) 20 | 4 37 Regions Visited 1 Branch Regions . Pre-discovered Areas . | . . Known Exits Taken . | . . Unknown Exits Taken 1 | 1 . Scrap Searched . | . . Spaces Dug . | . . Terrain Destroyed . | . . Melee . | . . Projectile . | . . AOE . | . . Terrain Rammed . | . . Walls Destroyed . | . . Machines Disabled . | . . Actions | -11 -10 --------- Run | Yrd Mat Total 393 | 71 322 Wait 28 | . 28 Move 304 | 61 243 Hop . | . . Pick Up 1 | 1 . Fast Attach 9 | 7 2 Attach . | . . Detach . | . . Swap 1 | . 1 Drop . | . . Fire 48 | 2 46 Melee . | . . Ram 2 | . 2 Kick . | . . Crush . | . . Escape Stasis . | . . Rewire . | . . Trap . | . . Miscellaneous . | . . Route ------- -11/Scrapyard -10/Materials History --------- Turn | Location | Event 8 | -11/Scrapyard | Discovered new exit (range 15) 62 | -11/Scrapyard | Entered Materials 303 | -10/Materials | Build established: Mutant 416 | -10/Materials | Core integrity fell below 50% 444 | -10/Materials | Lost 5 parts (2n3w) 518 | -10/Materials | Core integrity fell below 20% 527 | -10/Materials | Destroyed by G-34 Mercenary with Small Laser Last Messages --------------- 00381_ G-34 Mercenary destroyed. 00383_ Acquired Sml. Laser. 00388_ Acquired 20 matter. 00391_ G-34 Mercenary destroyed. 00395_ Wheel destroyed. 00413_ Sml. Laser destroyed. 00415_ G-34 Mercenary destroyed. 00420_ R-06 Scavenger collects Aluminum Leg. 00420_ K-01 Serf collects debris. 00421_ R-06 Scavenger collects Ion Engine. 00423_ R-06 Scavenger collects Heat Sink. 00423_ K-01 Serf collects debris. 00456_ K-01 Serf cleans the Processing Tank. 00484_ Triggered Alarm Trap. 00484_ An alarm sounds. 00484_ ALERT: Alarm triggered, dispatching investigation squad. 00495_ U-05 Engineer lays Concrete. 00500_ Sml. Laser destroyed. 00502_ Ion Engine destroyed. 00511_ Seismic Detector destroyed. Map ----- +----------------------------------------------------+ | | | | | | | | | ?????????????????????????????????????????? | | ?????????????????????????????????????????? | | ?????????????????????????????????????????? | | ?????????????????????????????????????????? | | ???????? ?????????????????????????????? | | ???????# ?????????????????????????????? | | ???????# ?????????????????????????????? | | ???????# ?????????????????????????????? | | ???????# ?????????????????????????????? | | ???????# ?????????????????????????????? | | ???????# ?????????????????????????????? | | ???????+ ?????????????????????????????? | | ???????# #?????????????????????????????? | | ???????# ###########???????????????????? | | ???????# # #????? ????????????? | | ???????# # w "" #??? ????????????? | | ???????# # """ Y" #? ??????????????? | | ???????# # """ "" # #???????????????? | | ???????# g """ + ?????????????????? | | ???????# # g # #???????????????? | | ???????# # # #???????????????? | | ???????# # @ # #???????????????? | | ???????# ########### #???????????????? | | ???????# #??######## ######??????????? | | ???????# #### # ???????????? | | ######## + # ???????????? | | # # #### """ # """ ?????????? | | # """ # #??# """ # """ ""???????? | | # """ # #??# """ # """ ""???????? | | # """ # #??# # ??????? | | # """ # #######+### ????????? | | # """ # ????????? | | # %+%% #???????????????? | | # #% ########????????? | | # ####+######+### # #????????? | | # "" ## # # =#* "#????????? | | # T" ## # # %#[ T#????????? | | # "" ## # # = /[""" "#????????? | | # ## # "T" # *#=""" #????????? | | ######### # """ # =# """ =#????????? | | ????????# # # ########????????? | | ????????############## #???????????????? | | ????????????# ## #???????????????? | | ????????????# ## #???????????????? | | ??#####?????# ## #???????????????? | | ??##! #?????# ## #???????????????? | +----------------------------------------------------+ Best States ------------- Heat Dissipation 25 Energy Generation 10 Energy Capacity 250 Matter Stores 300 Matter Capacity 300 Sight Range 16 Terrain Scan Density 10 Evasion (%) 50 Item Schematics ----------------- None Robot Schematics ------------------ None Fabricated ------------ Nothing Alien Tech Used ----------------- None Achievements -------------- None Challenges ------------ None Game ------ Seed BraceEnhancedDisintegrator Manual? 0 Play Time 00:06:32 Cumulative 177.6 hours Start 2024.09.01 @ 01:50:34 End 2024.09.01 @ 01:55:11 Sessions 1 Manual Loads 0 Difficulty Rogue Special Mode None Game No. 145 Rogue 145 Adventurer 0 Explorer 0 Win Type - Total 1 Types 0/0/0/1/0/0/0/0/0 Lore% 62 Gallery% 71 Achievement% 52 Wizard Run 0 Options --------- Layout 2 ASCII 0 Keyboard 1 Movement Vi Keybinds 0 Fullscreen 1 Font 32/SmallcapsGlow Map View 77x44 Zoom Use 0% Tactical HUD 1 Map Filters NONE Filters NONE Steam 1 RUN: 8327187b-301f-4a94-bf29-970f91461d4c